fUSD/lending_fUSD_20241121
["ID","MTS","AMOUNT","RATE_DAILY","PERIOD"]
[342923038,1732209033057,-500.0,0.00034629,2]
[342923039,1732209033068,-426.1694679,0.00034672,2]
[342923040,1732209033078,-752.24,0.00034715,120]
[342923041,1732209033088,-1108.72,0.00034733,2]
[342923042,1732209033098,-184.74,0.00034753,120]
[342923043,1732209033108,-426.1694679,0.00034827,2]
[342923044,1732209033119,-350.0,0.00035,2]
[342923045,1732209033130,-166.73,0.00035118,2]
[342923046,1732209033140,-426.1694679,0.00035144,2]
[342923047,1732209033150,-426.1694679,0.00035529,2]
[342923048,1732209033160,-1500.0,0.00035616,120]
[342923049,1732209033171,-426.1694679,0.00035674,2]
[342923050,1732209033181,-1061.96,0.00035954,2]
[342923051,1732209033195,-426.1694679,0.00036157,2]
[342923052,1732209033207,-426.1694679,0.00036336,2]
[342923053,1732209033218,-152.42224267,0.00036394,120]
[342923054,1732209033228,-635.29737328,0.00036394,120]
[342923055,1732209033238,-426.1694679,0.00036552,2]
[342923056,1732209033247,-166.73,0.00036567,2]
[342923057,1732209033257,-150.0,0.00036739,2]
[342923058,1732209033267,-1125.99,0.00036775,2]
[342923059,1732209033276,-190.34,0.00036896,120]
[342923060,1732209033287,-150.0,0.00036912,2]
[342923061,1732209033296,-426.1694679,0.00036967,2]
[342923062,1732209033306,-400.0,0.00037,2]
[342923063,1732209033316,-658.0,0.00037133,60]
[342923064,1732209033325,-426.1694679,0.00037207,2]
[342923065,1732209033335,-426.1694679,0.00037326,2]
[342923066,1732209033345,-500.0,0.00037427,60]
[342923067,1732209033355,-500.0,0.00037438,60]
[342923068,1732209033365,-500.0,0.00037529,60]
[342923069,1732209033374,-1061.96,0.00037666,2]
[342923070,1732209033384,-166.86,0.00037673,2]
[342923071,1732209033394,-426.1694679,0.00037677,2]
[342923072,1732209033406,-2900.0,0.000377,13]
[342923073,1732209033416,-1797.1111,0.00037756,2]
[342923074,1732209033426,-5900.0,0.000378,13]
[342923075,1732209033437,-11684.8752,0.000378,2]
[342923076,1732209033450,-6160.7105,0.000378,2]
[342923077,1732209033460,-4328.3552093,0.00037822,15]
[342923078,1732209033470,-303.24,0.00037856,2]
[342923079,1732209033480,-8900.0,0.000379,13]
[342923080,1732209033490,-211.27450731,0.00037948,7]
[342923081,1732209033501,-465.93686726,0.00037956,2]
[342923087,1732209037902,-20114.96799914,0.00037956,2]
[342923088,1732209037914,-7255.3562336,0.00037956,2]
[342923089,1732209037924,-3000.0,0.0003797,29]
[342923090,1732209037934,-5000.0,0.00038,2]
[342923091,1732209037949,-152.42224267,0.00038,120]
[342923092,1732209037959,-635.29737328,0.00038,120]
[342923093,1732209037969,-166.73,0.00038016,2]
[342923094,1732209037978,-426.1694688,0.00038017,2]
[342923095,1732209037988,-2500.0,0.00038055,2]
[342923096,1732209037998,-500.0,0.00038056,2]
[342923097,1732209038007,-433.83118165,0.00038056,2]
[342923098,1732209038072,-1001.36141835,0.00038056,2]
[342923099,1732209038081,-263.743,0.00038056,2]
[342923100,1732209038092,-3840.5925,0.00038056,2]
[342923101,1732209038102,-2500.0,0.0003808,2]
[342923102,1732209038112,-3000.0,0.0003812,29]
[342923103,1732209038123,-3139.0659,0.00038156,2]
[342923104,1732209038132,-483.0,0.00038156,2]
[342923105,1732209038143,-54018.3928,0.00038156,2]
[342923106,1732209038152,-5791.7047,0.00038156,2]
[342923107,1732209038162,-4574.2277,0.00038156,2]
[342923108,1732209038172,-202.95075191,0.00038156,9]
[342923109,1732209038182,-315.80907747,0.00038156,2]
[342923110,1732209038195,-181.307,0.0003816,120]
[342923111,1732209038204,-629.0,0.00038179,2]
[342923112,1732209038213,-1927.0,0.00038179,2]
[342923113,1732209038222,-560.0,0.00038179,2]
[342923114,1732209038232,-87326.65554457,0.0003818,2]
[342923115,1732209038242,-310.0,0.00038256,5]
[342923116,1732209038252,-1952.7999,0.00038256,2]
[342923117,1732209038262,-1000.0,0.00038256,2]
[342923118,1732209038272,-37917.8112,0.00038256,2]
[342923119,1732209038282,-706096.2069,0.00038256,2]
[342923120,1732209038292,-2294.2701,0.00038256,2]
[342923121,1732209038301,-209.75840877,0.00038256,2]
[342923122,1732209038311,-1332.782171,0.00038256,2]
[342923123,1732209038320,-500.0,0.00038273,5]
[342923124,1732209038330,-500.0,0.00038273,5]
[342923126,1732209038339,-160.6445865,0.00038273,5]
[342923127,1732209038349,-500.0,0.00038273,2]
[342923128,1732209038358,-3000.0,0.0003828,30]
[342923129,1732209038367,-429.9667201,0.00038346,2]
[342923130,1732209038378,-3221.3950027,0.00038346,2]
[342923131,1732209038388,-1500.78198442,0.00038355,120]
[342923132,1732209038399,-681428.98785071,0.00038355,30]
[342923133,1732209038411,-151.0,0.00038355,7]
[342923135,1732209038420,-151.0,0.00038355,7]
[342923136,1732209038429,-151.0,0.00038355,7]
[342923137,1732209038439,-151.0,0.00038355,7]
[342923138,1732209038455,-151.0,0.00038355,7]
[342923139,1732209038465,-151.0,0.00038355,7]
[342923140,1732209038474,-151.304065,0.00038355,7]
[342923141,1732209038484,-151.0,0.00038355,7]
[342923142,1732209038494,-531.648372,0.00038355,7]
[342923143,1732209038503,-151.0,0.00038355,7]
[342923145,1732209038513,-531.648372,0.00038355,7]
[342923146,1732209038522,-151.0,0.00038355,7]
[342923147,1732209038531,-151.0,0.00038355,7]
[342923148,1732209038541,-151.0,0.00038355,7]
[342923149,1732209038549,-151.0,0.00038355,7]
[342923150,1732209038559,-792.089825,0.00038355,7]
[342923151,1732209038568,-225.125914,0.00038355,7]
[342923152,1732209038578,-792.089825,0.00038355,7]
[342923153,1732209038587,-151.0,0.00038355,7]
[342923154,1732209038596,-151.0,0.00038355,7]
[342923155,1732209038605,-151.0,0.00038355,7]
[342923156,1732209038614,-151.0,0.00038355,7]
[342923157,1732209038624,-151.0,0.00038355,7]
[342923158,1732209038633,-151.0,0.00038355,7]
[342923159,1732209038643,-151.0,0.00038355,7]
[342923160,1732209038652,-151.0,0.00038355,7]
[342923161,1732209038661,-2169.50411109,0.00038355,120]
[342923162,1732209038671,-151.0,0.00038355,7]
[342923163,1732209038679,-151.0,0.00038355,7]
[342923164,1732209038689,-500.0,0.00038356,11]
[342923165,1732209038702,-500.0,0.00038356,11]
[342923166,1732209038712,-500.0,0.00038356,11]
[342923167,1732209038722,-500.0,0.00038356,11]
[342923168,1732209038731,-500.0,0.00038356,11]
[342923169,1732209038740,-500.0,0.00038356,11]
[342923170,1732209038749,-500.0,0.00038356,11]
[342923171,1732209038758,-500.0,0.00038356,11]
[342923172,1732209038768,-500.0,0.00038356,11]
[342923173,1732209038778,-500.0,0.00038356,11]
[342923174,1732209038787,-500.0,0.00038356,11]
[342923175,1732209038797,-500.0,0.00038356,11]
[342923176,1732209038807,-500.0,0.00038356,11]
[342923177,1732209038817,-299.97739065,0.00038356,11]
[342923178,1732209038827,-500.0,0.00038356,11]
[342923179,1732209038836,-500.0,0.00038356,11]
[342923180,1732209038845,-500.0,0.00038356,11]
[342923181,1732209038855,-500.0,0.00038356,11]
[342923182,1732209038865,-427.76281822,0.00038356,11]
[342923183,1732209038874,-500.0,0.00038356,11]
[342923184,1732209038884,-524.03771524,0.00038356,11]
[342923185,1732209038893,-500.0,0.00038356,11]
[342923186,1732209038903,-500.0,0.00038356,11]
[342923187,1732209038912,-500.0,0.00038356,11]
[342923188,1732209038921,-500.0,0.00038356,11]
[342923189,1732209038930,-500.0,0.00038356,11]
[342923190,1732209038942,-500.0,0.00038356,11]
[342923191,1732209038951,-500.0,0.00038356,11]
[342923192,1732209038961,-500.0,0.00038356,11]
[342923193,1732209038971,-500.0,0.00038356,7]
[342923194,1732209038981,-500.0,0.00038356,11]
[342923195,1732209038991,-500.0,0.00038356,11]
[342923196,1732209039000,-500.0,0.00038356,11]
[342923197,1732209039010,-500.0,0.00038356,11]
[342923198,1732209039020,-500.0,0.00038356,11]
[342923199,1732209039029,-500.0,0.00038356,11]
[342923200,1732209039038,-163.75689238,0.00038356,11]
[342923201,1732209039047,-500.0,0.00038356,11]
[342923202,1732209039056,-500.0,0.00038356,11]
[342923203,1732209039066,-500.0,0.00038356,11]
[342923204,1732209039075,-500.0,0.00038356,11]
[342923205,1732209039085,-279.77746754,0.00038356,11]
[342923206,1732209039094,-500.0,0.00038356,11]
[342923207,1732209039103,-500.0,0.00038356,11]
[342923208,1732209039113,-192.97645851,0.00038356,11]
[342923209,1732209039122,-500.0,0.00038356,11]
[342923210,1732209039131,-500.0,0.00038356,11]
[342923211,1732209039141,-528.06534883,0.00038356,11]
[342923212,1732209039150,-500.0,0.00038356,11]
[342923213,1732209039159,-506.60350371,0.00038356,11]
[342923214,1732209039168,-500.0,0.00038356,11]
[342923215,1732209039177,-500.0,0.00038356,11]
[342923216,1732209039186,-500.0,0.00038356,11]
[342923217,1732209039198,-500.0,0.00038356,11]
[342923218,1732209039207,-1056.25,0.00038356,11]
[342923219,1732209039216,-500.0,0.00038356,11]
[342923220,1732209039226,-648.09,0.00038356,11]
[342923221,1732209039236,-500.0,0.00038356,11]
[342923222,1732209039245,-500.0,0.00038356,11]
[342923223,1732209039254,-500.0,0.00038356,11]
[342923224,1732209039264,-500.0,0.00038356,11]
[342923225,1732209039273,-500.0,0.00038356,11]
[342923226,1732209039282,-500.0,0.00038356,11]
[342923227,1732209039291,-574.75,0.00038356,11]
[342923228,1732209039300,-427.37935443,0.00038356,11]
[342923229,1732209039310,-500.0,0.00038356,11]
[342923230,1732209039319,-500.0,0.00038356,11]
[342923231,1732209039329,-500.0,0.00038356,11]
[342923232,1732209039338,-500.0,0.00038356,11]
[342923233,1732209039348,-500.0,0.00038356,11]
[342923234,1732209039358,-805.26,0.00038356,11]
[342923235,1732209039368,-500.0,0.00038356,11]
[342923236,1732209039377,-500.0,0.00038356,11]
[342923237,1732209039388,-500.0,0.00038356,11]
[342923238,1732209039397,-500.0,0.00038356,11]
[342923239,1732209039413,-500.0,0.00038356,11]
[342923240,1732209039423,-500.0,0.00038356,11]
[342923241,1732209039434,-500.0,0.00038356,11]
[342923242,1732209039447,-500.0,0.00038356,11]
[342923243,1732209039456,-740.56,0.00038356,11]
[342923244,1732209039466,-500.0,0.00038356,11]
[342923245,1732209039475,-500.0,0.00038356,11]
[342923246,1732209039485,-500.0,0.00038356,11]
[342923247,1732209039496,-500.0,0.00038356,11]
[342923248,1732209039505,-500.0,0.00038356,11]
[342923249,1732209039515,-500.0,0.00038356,11]
[342923250,1732209039524,-500.0,0.00038356,11]
[342923251,1732209039533,-500.0,0.00038356,11]
[342923252,1732209039542,-500.0,0.00038356,11]
[342923253,1732209039552,-500.0,0.00038356,11]
[342923254,1732209039562,-500.0,0.00038356,11]
[342923255,1732209039572,-500.0,0.00038356,11]
[342923256,1732209039581,-500.0,0.00038356,11]
[342923257,1732209039591,-500.0,0.00038356,11]
[342923258,1732209039600,-150.0,0.00038356,11]
[342923259,1732209039610,-500.0,0.00038356,11]
[342923260,1732209039619,-500.0,0.00038356,11]
[342923261,1732209039628,-500.0,0.00038356,11]
[342923263,1732209039638,-500.0,0.00038356,11]
[342923265,1732209039647,-500.0,0.00038356,11]
[342923267,1732209039656,-500.0,0.00038356,11]
[342923269,1732209039665,-500.0,0.00038356,11]
[342923272,1732209039674,-500.0,0.00038356,11]
[342923274,1732209039683,-500.0,0.00038356,11]
[342923277,1732209039694,-500.0,0.00038356,11]
[342923280,1732209039703,-500.0,0.00038356,11]
[342923283,1732209039712,-500.0,0.00038356,11]
[342923285,1732209039721,-500.0,0.00038356,11]
[342923288,1732209039730,-500.0,0.00038356,11]
[342923291,1732209039739,-500.0,0.00038356,11]
[342923292,1732209039748,-500.0,0.00038356,11]
[342923293,1732209039757,-500.0,0.00038356,11]
[342923294,1732209039767,-500.0,0.00038356,11]
[342923295,1732209039776,-1128.47,0.00038356,11]
[342923296,1732209039785,-500.0,0.00038356,11]
[342923297,1732209039794,-151.02142378,0.00038356,11]
[342923298,1732209039804,-500.0,0.00038356,11]
[342923299,1732209039813,-500.0,0.00038356,11]
[342923300,1732209039822,-500.0,0.00038356,11]
[342923301,1732209039832,-500.0,0.00038356,11]
[342923302,1732209039841,-500.0,0.00038356,11]
[342923303,1732209039851,-500.0,0.00038356,11]
[342923304,1732209039860,-1155.89,0.00038356,11]
[342923305,1732209039870,-500.0,0.00038356,11]
[342923306,1732209039880,-500.0,0.00038356,11]
[342923307,1732209039890,-500.0,0.00038356,11]
[342923308,1732209039900,-500.0,0.00038356,11]
[342923309,1732209039909,-537.39,0.00038356,11]
[342923310,1732209039919,-500.0,0.00038356,11]
[342923311,1732209039928,-500.0,0.00038356,11]
[342923312,1732209039938,-500.0,0.00038356,11]
[342923313,1732209039950,-500.0,0.00038356,11]
[342923314,1732209039960,-500.0,0.00038356,11]
[342923315,1732209039969,-514.13115139,0.00038356,11]
[342923316,1732209039979,-500.0,0.00038356,11]
[342923317,1732209039989,-500.0,0.00038356,11]
[342923318,1732209039998,-500.0,0.00038356,11]
[342923319,1732209040008,-500.0,0.00038356,11]
[342923320,1732209040018,-500.0,0.00038356,11]
[342923321,1732209040027,-500.0,0.00038356,11]
[342923322,1732209040036,-500.0,0.00038356,11]
[342923323,1732209040046,-500.0,0.00038356,11]
[342923324,1732209040055,-500.0,0.00038356,11]
[342923325,1732209040065,-500.0,0.00038356,11]
[342923326,1732209040074,-500.0,0.00038356,11]
[342923327,1732209040083,-500.0,0.00038356,11]
[342923328,1732209040093,-500.0,0.00038356,11]
[342923329,1732209040102,-500.0,0.00038356,11]
[342923330,1732209040111,-500.0,0.00038356,11]
[342923331,1732209040120,-500.0,0.00038356,11]
[342923332,1732209040129,-500.0,0.00038356,11]
[342923333,1732209040139,-500.0,0.00038356,11]
[342923334,1732209040148,-202.47422015,0.00038356,11]
[342923335,1732209040158,-500.0,0.00038356,11]
[342923336,1732209040167,-500.0,0.00038356,11]
[342923337,1732209040176,-500.0,0.00038356,11]
[342923338,1732209040186,-500.0,0.00038356,11]
[342923339,1732209040198,-500.0,0.00038356,11]
[342923340,1732209040207,-500.0,0.00038356,11]
[342923341,1732209040217,-578.69,0.00038356,11]
[342923342,1732209040226,-500.0,0.00038356,11]
[342923343,1732209040235,-500.0,0.00038356,11]
[342923344,1732209040244,-589.28,0.00038356,11]
[342923345,1732209040254,-500.0,0.00038356,11]
[342923346,1732209040263,-500.0,0.00038356,11]
[342923347,1732209040273,-500.0,0.00038356,11]
[342923348,1732209040283,-500.0,0.00038356,11]
[342923349,1732209040293,-500.0,0.00038356,11]
[342923350,1732209040302,-500.0,0.00038356,11]
[342923351,1732209040312,-500.0,0.00038356,11]
[342923352,1732209040320,-500.0,0.00038356,11]
[342923353,1732209040330,-500.0,0.00038356,11]
[342923354,1732209040339,-489.55357748,0.00038356,11]
[342923355,1732209040349,-500.0,0.00038356,11]
[342923356,1732209040358,-779.64,0.00038356,11]
[342923357,1732209040368,-500.0,0.00038356,11]
[342923358,1732209040377,-500.0,0.00038356,11]
[342923359,1732209040387,-500.0,0.00038356,11]
[342923360,1732209040397,-500.0,0.00038356,11]
[342923361,1732209040407,-500.0,0.00038356,11]
[342923362,1732209040417,-500.0,0.00038356,11]
[342923363,1732209040426,-500.0,0.00038356,11]
[342923364,1732209040436,-500.0,0.00038356,11]
[342923365,1732209040450,-500.0,0.00038356,11]
[342923366,1732209040462,-500.0,0.00038356,11]
[342923367,1732209040471,-500.0,0.00038356,11]
[342923368,1732209040483,-500.0,0.00038356,11]
[342923369,1732209040492,-500.0,0.00038356,11]
[342923370,1732209040502,-500.0,0.00038356,11]
[342923371,1732209040513,-500.0,0.00038356,11]
[342923372,1732209040522,-500.0,0.00038356,11]
[342923373,1732209040532,-500.0,0.00038356,11]
[342923374,1732209040541,-500.0,0.00038356,11]
[342923375,1732209040551,-500.0,0.00038356,11]
[342923376,1732209040561,-500.0,0.00038356,11]
[342923377,1732209040571,-500.0,0.00038356,11]
[342923378,1732209040582,-500.0,0.00038356,11]
[342923379,1732209040592,-544.36320497,0.00038356,11]
[342923380,1732209040601,-500.0,0.00038356,11]
[342923381,1732209040610,-500.0,0.00038356,11]
[342923382,1732209040620,-500.0,0.00038356,11]
[342923383,1732209040630,-500.0,0.00038356,11]
[342923384,1732209040640,-500.0,0.00038356,11]
[342923385,1732209040650,-500.0,0.00038356,11]
[342923386,1732209040660,-500.0,0.00038356,11]
[342923387,1732209040670,-500.0,0.00038356,11]
[342923388,1732209040681,-500.0,0.00038356,11]
[342923389,1732209040692,-500.0,0.00038356,11]
[342923390,1732209040701,-500.0,0.00038356,11]
[342923391,1732209040711,-500.0,0.00038356,11]
[342923392,1732209040721,-500.0,0.00038356,11]
[342923393,1732209040731,-500.0,0.00038356,11]
[342923394,1732209040741,-500.0,0.00038356,11]
[342923395,1732209040751,-500.0,0.00038356,11]
[342923396,1732209040761,-500.0,0.00038356,11]
[342923397,1732209040771,-500.0,0.00038356,11]
[342923398,1732209040781,-500.0,0.00038356,11]
[342923399,1732209040791,-500.0,0.00038356,11]
[342923400,1732209040802,-610.1,0.00038356,11]
[342923401,1732209040812,-500.0,0.00038356,11]
[342923402,1732209040822,-500.0,0.00038356,11]
[342923403,1732209040831,-500.0,0.00038356,11]
[342923404,1732209040841,-500.0,0.00038356,11]
[342923405,1732209040851,-500.0,0.00038356,11]
[342923406,1732209040861,-500.0,0.00038356,11]
[342923407,1732209040872,-500.0,0.00038356,11]
[342923408,1732209040882,-500.0,0.00038356,11]
[342923409,1732209040893,-151.0,0.00038356,7]
[342923410,1732209040902,-500.0,0.00038356,11]
[342923411,1732209040912,-151.0,0.00038356,7]
[342923412,1732209040923,-500.0,0.00038356,11]
[342923413,1732209040932,-500.0,0.00038356,11]
[342923414,1732209040944,-500.0,0.00038356,11]
[342923415,1732209040954,-500.0,0.00038356,11]
[342923416,1732209040964,-500.0,0.00038356,11]
[342923417,1732209040974,-500.0,0.00038356,11]
[342923418,1732209040984,-500.0,0.00038356,11]
[342923419,1732209040994,-500.0,0.00038356,11]
[342923420,1732209041004,-500.0,0.00038356,11]
[342923421,1732209041014,-348.40363494,0.00038356,11]
[342923422,1732209041023,-500.0,0.00038356,11]
[342923423,1732209041034,-500.0,0.00038356,11]
[342923424,1732209041044,-500.0,0.00038356,11]
[342923425,1732209041054,-500.0,0.00038356,11]
[342923426,1732209041064,-500.0,0.00038356,11]
[342923427,1732209041074,-896.48,0.00038356,7]
[342923428,1732209041084,-500.0,0.00038356,11]
[342923429,1732209041093,-500.0,0.00038356,11]
[342923430,1732209041104,-500.0,0.00038356,11]
[342923431,1732209041114,-200.0,0.00038356,2]
[342923432,1732209041124,-504.14,0.00038356,11]
[342923433,1732209041134,-500.0,0.00038356,11]
[342923434,1732209041144,-500.0,0.00038356,11]
[342923435,1732209041154,-500.0,0.00038356,11]
[342923436,1732209041165,-500.0,0.00038356,11]
[342923437,1732209041175,-500.0,0.00038356,11]
[342923438,1732209041184,-500.0,0.00038356,11]
[342923439,1732209041195,-500.0,0.00038356,11]
[342923440,1732209041205,-500.0,0.00038356,11]
[342923441,1732209041215,-500.0,0.00038356,11]
[342923442,1732209041225,-500.0,0.00038356,11]
[342923443,1732209041235,-500.0,0.00038356,11]
[342923444,1732209041245,-500.0,0.00038356,11]
[342923445,1732209041255,-500.0,0.00038356,11]
[342923446,1732209041265,-500.0,0.00038356,11]
[342923447,1732209041275,-943.58,0.00038356,11]
[342923448,1732209041284,-500.0,0.00038356,11]
[342923449,1732209041294,-500.0,0.00038356,11]
[342923450,1732209041303,-500.0,0.00038356,11]
[342923451,1732209041313,-500.0,0.00038356,11]
[342923452,1732209041323,-593.87,0.00038356,11]
[342923453,1732209041332,-500.0,0.00038356,11]
[342923454,1732209041342,-500.0,0.00038356,11]
[342923455,1732209041352,-500.0,0.00038356,11]
[342923456,1732209041361,-500.0,0.00038356,11]
[342923457,1732209041371,-500.0,0.00038356,11]
[342923458,1732209041380,-500.0,0.00038356,11]
[342923459,1732209041390,-500.0,0.00038356,11]
[342923460,1732209041402,-575.96314353,0.00038356,11]
[342923461,1732209041413,-500.0,0.00038356,11]
[342923462,1732209041423,-500.0,0.00038356,11]
[342923463,1732209041432,-500.0,0.00038356,11]
[342923464,1732209041443,-943.2,0.00038356,11]
[342923465,1732209041454,-706.88,0.00038356,11]
[342923466,1732209041464,-506.76,0.00038356,11]
[342923467,1732209041474,-848.88,0.00038356,11]
[342923468,1732209041483,-500.0,0.00038356,11]
[342923469,1732209041493,-763.5,0.00038356,11]
[342923470,1732209041503,-346.08920029,0.00038356,11]
[342923471,1732209041514,-687.26,0.00038356,11]
[342923472,1732209041523,-151.0,0.00038356,7]
[342923473,1732209041533,-500.0,0.00038356,11]
[342923474,1732209041543,-500.0,0.00038356,11]
[342923475,1732209041552,-500.0,0.00038356,11]
[342923476,1732209041562,-500.0,0.00038356,11]
[342923477,1732209041572,-500.0,0.00038356,11]
[342923478,1732209041582,-822.37,0.00038356,11]
[342923479,1732209041592,-500.0,0.00038356,11]
[342923480,1732209041601,-718.91,0.00038356,11]
[342923481,1732209041611,-1027.54,0.00038356,11]
[342923482,1732209041621,-500.0,0.00038356,11]
[342923483,1732209041631,-500.0,0.00038356,11]
[342923484,1732209041640,-500.0,0.00038356,11]
[342923485,1732209041650,-500.0,0.00038356,11]
[342923486,1732209041659,-500.0,0.00038356,11]
[342923487,1732209041670,-559.94,0.00038356,11]
[342923488,1732209041681,-500.0,0.00038356,11]
[342923489,1732209041693,-500.0,0.00038356,11]
[342923490,1732209041702,-194.015686,0.00038356,7]
[342923491,1732209041712,-500.0,0.00038356,11]
[342923492,1732209041722,-500.0,0.00038356,11]
[342923493,1732209041731,-500.0,0.00038356,11]
[342923494,1732209041741,-503.68128078,0.00038356,11]
[342923495,1732209041752,-500.0,0.00038356,11]
[342923496,1732209041762,-500.0,0.00038356,11]
[342923497,1732209041772,-500.0,0.00038356,11]
[342923498,1732209041782,-500.0,0.00038356,11]
[342923499,1732209041792,-500.0,0.00038356,11]
[342923500,1732209041802,-500.0,0.00038356,11]
[342923501,1732209041812,-500.0,0.00038356,11]
[342923502,1732209041822,-500.0,0.00038356,11]
[342923503,1732209041832,-583.46658701,0.00038356,11]
[342923504,1732209041841,-500.0,0.00038356,11]
[342923505,1732209041851,-755.73,0.00038356,11]
[342923506,1732209041860,-500.0,0.00038356,11]
[342923507,1732209041871,-500.0,0.00038356,11]
[342923508,1732209041880,-500.0,0.00038356,11]
[342923509,1732209041890,-500.0,0.00038356,11]
[342923510,1732209041900,-500.0,0.00038356,11]
[342923511,1732209041910,-151.847699,0.00038356,7]
[342923512,1732209041921,-581.66776536,0.00038356,11]
[342923513,1732209041931,-500.0,0.00038356,11]
[342923514,1732209041942,-500.0,0.00038356,11]
[342923515,1732209041951,-636.75402308,0.00038356,11]
[342923516,1732209041962,-500.0,0.00038356,11]
[342923517,1732209041972,-562.56,0.00038356,11]
[342923518,1732209041982,-500.0,0.00038356,11]
[342923519,1732209041992,-500.0,0.00038356,11]
[342923520,1732209042002,-500.0,0.00038356,11]
[342923521,1732209042012,-500.0,0.00038356,11]
[342923522,1732209042023,-500.0,0.00038356,11]
[342923523,1732209042033,-500.0,0.00038356,11]
[342923524,1732209042043,-1000.0,0.00038356,11]
[342923525,1732209042053,-578.57,0.00038356,11]
[342923526,1732209042062,-500.0,0.00038356,11]
[342923527,1732209042071,-802.57,0.00038356,11]
[342923528,1732209042081,-500.0,0.00038356,11]
[342923529,1732209042090,-500.0,0.00038356,11]
[342923530,1732209042100,-500.0,0.00038356,11]
[342923531,1732209042110,-500.0,0.00038356,11]
[342923532,1732209042120,-500.0,0.00038356,11]
[342923533,1732209042131,-683.75,0.00038356,11]
[342923534,1732209042141,-500.0,0.00038356,11]
[342923535,1732209042152,-793.1,0.00038356,11]
[342923536,1732209042162,-603.23406442,0.00038356,11]
[342923537,1732209042171,-500.0,0.00038356,11]
[342923538,1732209042181,-500.0,0.00038356,11]
[342923539,1732209042192,-500.0,0.00038356,11]
[342923540,1732209042202,-500.0,0.00038356,11]
[342923541,1732209042212,-500.0,0.00038356,11]
[342923542,1732209042221,-500.0,0.00038356,11]
[342923543,1732209042231,-500.0,0.00038356,11]
[342923544,1732209042242,-500.0,0.00038356,11]
[342923545,1732209042252,-500.0,0.00038356,11]
[342923546,1732209042264,-500.0,0.00038356,11]
[342923547,1732209042273,-500.0,0.00038356,11]
[342923548,1732209042283,-500.0,0.00038356,11]
[342923549,1732209042293,-500.0,0.00038356,11]
[342923550,1732209042302,-500.0,0.00038356,11]
[342923551,1732209042312,-743.18,0.00038356,11]
[342923552,1732209042323,-500.0,0.00038356,11]
[342923553,1732209042333,-619.84,0.00038356,11]
[342923554,1732209042345,-500.0,0.00038356,11]
[342923555,1732209042355,-623.3,0.00038356,11]
[342923556,1732209042366,-432.18902317,0.00038356,11]
[342923557,1732209042376,-529.51,0.00038356,11]
[342923558,1732209042386,-500.0,0.00038356,11]
[342923559,1732209042395,-151.0,0.00038356,7]
[342923560,1732209042405,-151.0,0.00038356,7]
[342923561,1732209042419,-500.0,0.00038356,11]
[342923562,1732209042428,-500.0,0.00038356,11]
[342923563,1732209042440,-500.0,0.00038356,11]